[Event "Titled Tuesday Blitz July 25 Late 2023"]
[White "Yolosz"]
[Black "KSho99"]
[WhiteElo "2319"]
[BlackElo "2222"]
[Result "1-0"]
[Round "11"]
[TimeControl "180+2"]
[Date "2023.07.25"]
[WhiteClock "0:01:36"]
[BlackClock "0:00:29"]
[Board "93"]

1. d4 {[%clk 0:03:00]}  d5 {[%clk 0:02:58]} 2. Bf4 {[%clk 0:03:00]}  Nf6 {[%clk 0:02:55]} 3. e3 {[%clk 0:03:00]}  c5 {[%clk 0:02:54]} 4. c3 {[%clk 0:02:57]}  Nc6 {[%clk 0:02:54]} 5. Nd2 {[%clk 0:02:55]}  Qb6 {[%clk 0:02:51]} 6. Qb3 {[%clk 0:02:50]}  c4 {[%clk 0:02:43]} 7. Qxb6 {[%clk 0:02:49]}  axb6 {[%clk 0:02:43]} 8. e4 {[%clk 0:02:50]}  Nxe4 {[%clk 0:02:33]} 9. Nxe4 {[%clk 0:02:48]}  dxe4 {[%clk 0:02:34]} 10. Bxc4 {[%clk 0:02:48]}  Bf5 {[%clk 0:02:25]} 11. f3 {[%clk 0:02:31]}  e6 {[%clk 0:02:18]} 12. fxe4 {[%clk 0:02:25]}  Bxe4 {[%clk 0:02:18]} 13. Nf3 {[%clk 0:02:26]}  Be7 {[%clk 0:02:10]} 14. O-O {[%clk 0:02:20]}  O-O {[%clk 0:02:03]} 15. Rae1 {[%clk 0:02:19]}  Bd5 {[%clk 0:01:53]} 16. Bxd5 {[%clk 0:02:17]}  exd5 {[%clk 0:01:53]} 17. a3 {[%clk 0:02:10]}  Rfe8 {[%clk 0:01:51]} 18. Bc7 {[%clk 0:02:05]}  b5 {[%clk 0:01:46]} 19. Ne5 {[%clk 0:02:03]}  Bf6 {[%clk 0:01:34]} 20. Nd3 {[%clk 0:01:50]}  Rac8 {[%clk 0:01:18]} 21. Bb6 {[%clk 0:01:48]}  Re6 {[%clk 0:00:54]} 22. Nf4 {[%clk 0:01:43]}  Rxe1 {[%clk 0:00:49]} 23. Rxe1 {[%clk 0:01:42]}  Ne7 {[%clk 0:00:48]} 24. Bc5 {[%clk 0:01:39]}  Ng6 {[%clk 0:00:31]} 25. Nxd5 {[%clk 0:01:38]}  Bd8 {[%clk 0:00:29]} 26. Re8+ {[%clk 0:01:36]} 1-0


[Site "https://www.chess.com"]

[Event "Titled Tuesday Blitz July 25 Late 2023"]
[White "Jahnz, Fabian"]
[Black "Kujawski, Adam"]
[WhiteFideId "4653300"]
[BlackFideId "1100920"]
[WhiteElo "2199"]
[BlackElo "2316"]
[Result "1/2-1/2"]
[Round "11"]
[TimeControl "180+2"]
[Date "2023.07.25"]
[WhiteClock "0:00:16"]
[BlackClock "0:00:16"]
[Board "94"]

1. e4 {[%clk 0:03:00]}  e5 {[%clk 0:02:54]} 2. d4 {[%clk 0:02:58]}  exd4 {[%clk 0:02:53]} 3. Qxd4 {[%clk 0:02:59]}  Nc6 {[%clk 0:02:53]} 4. Qe3 {[%clk 0:03:00]}  Nf6 {[%clk 0:02:53]} 5. Nc3 {[%clk 0:03:00]}  Bb4 {[%clk 0:02:53]} 6. Bd2 {[%clk 0:03:00]}  O-O {[%clk 0:02:52]} 7. O-O-O {[%clk 0:03:00]}  Re8 {[%clk 0:02:52]} 8. Qf4 {[%clk 0:02:32]}  Bxc3 {[%clk 0:02:26]} 9. Bxc3 {[%clk 0:02:32]}  Nxe4 {[%clk 0:02:23]} 10. Bc4 {[%clk 0:02:24]}  Re7 {[%clk 0:01:27]} 11. Bxf7+ {[%clk 0:02:16]}  Rxf7 {[%clk 0:01:27]} 12. Qxe4 {[%clk 0:02:16]}  Qg5+ {[%clk 0:00:49]} 13. Kb1 {[%clk 0:02:13]}  Qf5 {[%clk 0:00:44]} 14. Qc4 {[%clk 0:01:34]}  b5 {[%clk 0:00:42]} 15. Qd3 {[%clk 0:01:24]}  Qxd3 {[%clk 0:00:34]} 16. Rxd3 {[%clk 0:01:22]}  Rxf2 {[%clk 0:00:29]} 17. Nf3 {[%clk 0:01:20]}  Rxg2 {[%clk 0:00:26]} 18. Rdd1 {[%clk 0:01:17]}  d6 {[%clk 0:00:25]} 19. Rhg1 {[%clk 0:01:16]}  Rxg1 {[%clk 0:00:23]} 20. Rxg1 {[%clk 0:01:17]}  g6 {[%clk 0:00:23]} 21. h4 {[%clk 0:01:16]}  Bf5 {[%clk 0:00:23]} 22. h5 {[%clk 0:01:15]}  b4 {[%clk 0:00:23]} 23. Bd2 {[%clk 0:01:10]}  Re8 {[%clk 0:00:22]} 24. Nh4 {[%clk 0:01:07]}  Nd4 {[%clk 0:00:21]} 25. Nxf5 {[%clk 0:01:05]}  Nxf5 {[%clk 0:00:20]} 26. hxg6 {[%clk 0:01:04]}  hxg6 {[%clk 0:00:20]} 27. Rxg6+ {[%clk 0:01:04]}  Kf7 {[%clk 0:00:21]} 28. Rg2 {[%clk 0:01:01]}  Re4 {[%clk 0:00:19]} 29. Rf2 {[%clk 0:01:00]}  Ke6 {[%clk 0:00:19]} 30. b3 {[%clk 0:00:58]}  c5 {[%clk 0:00:19]} 31. Kb2 {[%clk 0:00:58]}  a6 {[%clk 0:00:19]} 32. Rh2 {[%clk 0:00:58]}  d5 {[%clk 0:00:18]} 33. a3 {[%clk 0:00:57]}  a5 {[%clk 0:00:17]} 34. axb4 {[%clk 0:00:57]}  axb4 {[%clk 0:00:17]} 35. Rh8 {[%clk 0:00:56]}  Nd4 {[%clk 0:00:16]} 36. Re8+ {[%clk 0:00:56]}  Kf5 {[%clk 0:00:16]} 37. Rxe4 {[%clk 0:00:55]}  Kxe4 {[%clk 0:00:16]} 38. Bh6 {[%clk 0:00:53]}  Nb5 {[%clk 0:00:16]} 39. Bf8 {[%clk 0:00:53]}  Kd4 {[%clk 0:00:16]} 40. Bg7+ {[%clk 0:00:53]}  Ke3 {[%clk 0:00:15]} 41. Bf8 {[%clk 0:00:54]}  c4 {[%clk 0:00:14]} 42. bxc4 {[%clk 0:00:54]}  dxc4 {[%clk 0:00:14]} 43. Bxb4 {[%clk 0:00:54]}  Kd4 {[%clk 0:00:14]} 44. Be1 {[%clk 0:00:53]}  Kd5 {[%clk 0:00:13]} 45. Bf2 {[%clk 0:00:52]}  Kc6 {[%clk 0:00:13]} 46. Be3 {[%clk 0:00:51]}  Kd5 {[%clk 0:00:13]} 47. Bf2 {[%clk 0:00:51]}  Kc6 {[%clk 0:00:14]} 48. Kc1 {[%clk 0:00:51]}  Kd5 {[%clk 0:00:14]} 49. Kd2 {[%clk 0:00:51]}  Ke4 {[%clk 0:00:14]} 50. Bb6 {[%clk 0:00:50]}  Kd5 {[%clk 0:00:14]} 51. Ke3 {[%clk 0:00:48]}  Na3 {[%clk 0:00:14]} 52. c3 {[%clk 0:00:45]}  Nb5 {[%clk 0:00:14]} 53. Ba5 {[%clk 0:00:44]}  Nd6 {[%clk 0:00:14]} 54. Bb4 {[%clk 0:00:44]}  Nf5+ {[%clk 0:00:14]} 55. Kf4 {[%clk 0:00:44]}  Ng7 {[%clk 0:00:14]} 56. Ba5 {[%clk 0:00:37]}  Ne6+ {[%clk 0:00:15]} 57. Ke3 {[%clk 0:00:37]}  Nc5 {[%clk 0:00:15]} 58. Bb4 {[%clk 0:00:36]}  Ne4 {[%clk 0:00:15]} 59. Ba5 {[%clk 0:00:35]}  Nf6 {[%clk 0:00:14]} 60. Kf4 {[%clk 0:00:33]}  Nd7 {[%clk 0:00:13]} 61. Bb4 {[%clk 0:00:32]}  Nb8 {[%clk 0:00:12]} 62. Kf5 {[%clk 0:00:29]}  Nc6 {[%clk 0:00:13]} 63. Ba3 {[%clk 0:00:27]}  Na7 {[%clk 0:00:10]} 64. Bb4 {[%clk 0:00:25]}  Nb5 {[%clk 0:00:11]} 65. Ba5 {[%clk 0:00:26]}  Nd6+ {[%clk 0:00:06]} 66. Kf4 {[%clk 0:00:25]}  Nb5 {[%clk 0:00:06]} 67. Bb4 {[%clk 0:00:24]}  Nc7 {[%clk 0:00:05]} 68. Kf5 {[%clk 0:00:23]}  Ne6 {[%clk 0:00:06]} 69. Kf6 {[%clk 0:00:21]}  Nf4 {[%clk 0:00:05]} 70. Kf5 {[%clk 0:00:21]}  Ne2 {[%clk 0:00:05]} 71. Ba5 {[%clk 0:00:19]}  Kc5 {[%clk 0:00:05]} 72. Bb4+ {[%clk 0:00:19]}  Kb5 {[%clk 0:00:05]} 73. Ke4 {[%clk 0:00:19]}  Ka4 {[%clk 0:00:04]} 74. Ke3 {[%clk 0:00:19]}  Nc1 {[%clk 0:00:04]} 75. Kd4 {[%clk 0:00:19]}  Kb3 {[%clk 0:00:05]} 76. Ba5 {[%clk 0:00:18]}  Ne2+ {[%clk 0:00:05]} 77. Ke3 {[%clk 0:00:18]}  Nxc3 {[%clk 0:00:05]} 78. Bd8 {[%clk 0:00:16]}  Na2 {[%clk 0:00:06]} 79. Bf6 {[%clk 0:00:16]}  Nb4 {[%clk 0:00:06]} 80. Ke2 {[%clk 0:00:15]}  Nd5 {[%clk 0:00:06]} 81. Bh8 {[%clk 0:00:15]}  Nc3+ {[%clk 0:00:06]} 82. Kd2 {[%clk 0:00:14]}  Ne4+ {[%clk 0:00:06]} 83. Kc1 {[%clk 0:00:14]}  Kb4 {[%clk 0:00:06]} 84. Kc2 {[%clk 0:00:14]}  Kc5 {[%clk 0:00:07]} 85. Ba1 {[%clk 0:00:14]}  Kd5 {[%clk 0:00:08]} 86. Bb2 {[%clk 0:00:14]}  Nc5 {[%clk 0:00:08]} 87. Bh8 {[%clk 0:00:13]}  Na6 {[%clk 0:00:08]} 88. Bg7 {[%clk 0:00:14]}  Nb4+ {[%clk 0:00:08]} 89. Kc3 {[%clk 0:00:14]}  Nc6 {[%clk 0:00:09]} 90. Kc2 {[%clk 0:00:14]}  Nb4+ {[%clk 0:00:09]} 91. Kc3 {[%clk 0:00:14]}  Nd3 {[%clk 0:00:10]} 92. Bh8 {[%clk 0:00:14]}  Nc5 {[%clk 0:00:10]} 93. Bg7 {[%clk 0:00:14]}  Ne4+ {[%clk 0:00:11]} 94. Kc2 {[%clk 0:00:14]}  Ke6 {[%clk 0:00:11]} 95. Bh8 {[%clk 0:00:14]}  Kf5 {[%clk 0:00:12]} 96. Ba1 {[%clk 0:00:14]}  Kf4 {[%clk 0:00:12]} 97. Bh8 {[%clk 0:00:14]}  Ke3 {[%clk 0:00:12]} 98. Bg7 {[%clk 0:00:14]}  Ke2 {[%clk 0:00:13]} 99. Bh8 {[%clk 0:00:14]}  Kf3 {[%clk 0:00:13]} 100. Bg7 {[%clk 0:00:15]}  Kf4 {[%clk 0:00:13]} 101. Bh8 {[%clk 0:00:15]}  Kf5 {[%clk 0:00:14]} 102. Bg7 {[%clk 0:00:15]}  Ke6 {[%clk 0:00:14]} 103. Bh8 {[%clk 0:00:16]}  Kd5 {[%clk 0:00:15]} 104. Bg7 {[%clk 0:00:16]}  Ke6 {[%clk 0:00:16]} 1/2-1/2


[Site "https://www.chess.com"]

[Event "Titled Tuesday Blitz July 25 Late 2023"]
[White "Akhayan, Ruben"]
[Black "Oliveira, Tiago Batista"]
[WhiteFideId "204439"]
[BlackFideId "2108291"]
[WhiteElo "2260"]
[BlackElo "2177"]
[Result "1/2-1/2"]
[Round "11"]
[TimeControl "180+2"]
[Date "2023.07.25"]
[WhiteClock "0:02:14"]
[BlackClock "0:01:30"]
[Board "95"]

1. d4 {[%clk 0:03:00]}  Nf6 {[%clk 0:02:55]} 2. Nf3 {[%clk 0:03:00]}  g6 {[%clk 0:02:55]} 3. Bf4 {[%clk 0:03:00]}  Bg7 {[%clk 0:02:53]} 4. e3 {[%clk 0:03:00]}  d6 {[%clk 0:02:54]} 5. Be2 {[%clk 0:03:01]}  O-O {[%clk 0:02:54]} 6. h3 {[%clk 0:03:01]}  Re8 {[%clk 0:02:54]} 7. Bh2 {[%clk 0:03:00]}  Nbd7 {[%clk 0:02:54]} 8. Kf1 {[%clk 0:03:00]}  c6 {[%clk 0:02:53]} 9. g3 {[%clk 0:02:59]}  Qc7 {[%clk 0:02:53]} 10. Kg2 {[%clk 0:02:59]}  e5 {[%clk 0:02:53]} 11. dxe5 {[%clk 0:02:58]}  dxe5 {[%clk 0:02:50]} 12. g4 {[%clk 0:02:54]}  Qb6 {[%clk 0:02:43]} 13. b3 {[%clk 0:02:50]}  h5 {[%clk 0:02:14]} 14. g5 {[%clk 0:02:41]}  Nd5 {[%clk 0:02:13]} 15. c4 {[%clk 0:02:35]}  Nxe3+ {[%clk 0:01:41]} 16. fxe3 {[%clk 0:02:33]}  Qxe3 {[%clk 0:01:40]} 17. Bg1 {[%clk 0:02:18]}  Qf4 {[%clk 0:01:33]} 18. Bh2 {[%clk 0:02:17]}  Qe3 {[%clk 0:01:31]} 19. Bg1 {[%clk 0:02:14]}  Qf4 {[%clk 0:01:30]} 20. Bh2 {[%clk 0:02:14]}  Qe3 {[%clk 0:01:30]} 1/2-1/2


[Site "https://www.chess.com"]

[Event "Titled Tuesday Blitz July 25 Late 2023"]
[White "Lopez Perdomo, Juan David"]
[Black "Barwinska, Ewa"]
[WhiteFideId "4405137"]
[BlackFideId "21833761"]
[WhiteElo "2212"]
[BlackElo "2287"]
[Result "0-1"]
[Round "11"]
[TimeControl "180+2"]
[Date "2023.07.25"]
[WhiteClock "0:00:07"]
[BlackClock "0:00:12"]
[Board "99"]

1. e4 {[%clk 0:02:58]}  c5 {[%clk 0:03:00]} 2. d4 {[%clk 0:02:58]}  cxd4 {[%clk 0:02:59]} 3. c3 {[%clk 0:02:59]}  dxc3 {[%clk 0:02:59]} 4. Nxc3 {[%clk 0:03:00]}  Nc6 {[%clk 0:02:59]} 5. Nf3 {[%clk 0:03:01]}  e6 {[%clk 0:02:57]} 6. Bc4 {[%clk 0:03:02]}  a6 {[%clk 0:02:58]} 7. O-O {[%clk 0:03:02]}  Nge7 {[%clk 0:02:57]} 8. Bg5 {[%clk 0:03:01]}  f6 {[%clk 0:02:56]} 9. Bh4 {[%clk 0:03:01]}  Ng6 {[%clk 0:02:55]} 10. Bg3 {[%clk 0:03:02]}  b5 {[%clk 0:02:47]} 11. Bb3 {[%clk 0:03:02]}  Be7 {[%clk 0:02:39]} 12. Qe2 {[%clk 0:03:01]}  O-O {[%clk 0:02:34]} 13. Rfd1 {[%clk 0:03:00]}  Qb6 {[%clk 0:02:33]} 14. Nd5 {[%clk 0:02:58]}  Qb7 {[%clk 0:02:19]} 15. Rac1 {[%clk 0:02:25]}  Kh8 {[%clk 0:02:01]} 16. Nxe7 {[%clk 0:01:58]}  Ngxe7 {[%clk 0:01:54]} 17. Bd6 {[%clk 0:01:59]}  Re8 {[%clk 0:01:52]} 18. e5 {[%clk 0:01:52]}  Nxe5 {[%clk 0:01:33]} 19. Bxe5 {[%clk 0:01:24]}  fxe5 {[%clk 0:01:33]} 20. Ng5 {[%clk 0:01:17]}  Rf8 {[%clk 0:00:59]} 21. Qd3 {[%clk 0:00:55]}  Ng6 {[%clk 0:00:38]} 22. Qh3 {[%clk 0:00:46]}  h6 {[%clk 0:00:34]} 23. Bc2 {[%clk 0:00:26]}  Nf4 {[%clk 0:00:33]} 24. Be4 {[%clk 0:00:26]}  Nxh3+ {[%clk 0:00:31]} 25. gxh3 {[%clk 0:00:25]}  Qa7 {[%clk 0:00:28]} 26. Nf3 {[%clk 0:00:11]}  Rb8 {[%clk 0:00:20]} 27. Nxe5 {[%clk 0:00:10]}  Qxf2+ {[%clk 0:00:17]} 28. Kh1 {[%clk 0:00:08]}  Bb7 {[%clk 0:00:12]} 29. Bxb7 {[%clk 0:00:04]}  Rxb7 {[%clk 0:00:12]} 30. Rf1 {[%clk 0:00:04]}  Qxf1+ {[%clk 0:00:11]} 31. Rxf1 {[%clk 0:00:05]}  Rxf1+ {[%clk 0:00:11]} 32. Kg2 {[%clk 0:00:06]}  Rb1 {[%clk 0:00:11]} 33. Ng6+ {[%clk 0:00:05]}  Kh7 {[%clk 0:00:11]} 34. Nf8+ {[%clk 0:00:05]}  Kg8 {[%clk 0:00:11]} 35. Ng6 {[%clk 0:00:05]}  Rxb2+ {[%clk 0:00:12]} 36. Kg3 {[%clk 0:00:05]}  Rxa2 {[%clk 0:00:13]} 37. Kh4 {[%clk 0:00:05]}  Ra4+ {[%clk 0:00:13]} 38. Kh5 {[%clk 0:00:05]}  b4 {[%clk 0:00:14]} 39. h4 {[%clk 0:00:06]}  b3 {[%clk 0:00:14]} 40. h3 {[%clk 0:00:07]}  Ra5+ {[%clk 0:00:14]} 41. Ne5 {[%clk 0:00:05]}  Rxe5+ {[%clk 0:00:14]} 42. Kg6 {[%clk 0:00:06]}  b2 {[%clk 0:00:12]} 43. h5 {[%clk 0:00:07]}  Rg5# {[%clk 0:00:12]} 0-1


[Site "https://www.chess.com"]

[Event "Titled Tuesday Blitz July 25 Late 2023"]
[White "Gyulamiryan-koryun"]
[Black "Biliy, Vadim"]
[BlackFideId "14114127"]
[WhiteElo "2078"]
[BlackElo "2277"]
[Result "0-1"]
[Round "11"]
[TimeControl "180+2"]
[Date "2023.07.25"]
[WhiteClock "0:00:00"]
[BlackClock "0:00:32"]
[Board "101"]

1. e4 {[%clk 0:02:53]}  d6 {[%clk 0:02:59]} 2. d4 {[%clk 0:02:52]}  Nf6 {[%clk 0:03:00]} 3. Nc3 {[%clk 0:02:50]}  g6 {[%clk 0:03:00]} 4. f4 {[%clk 0:02:50]}  Bg7 {[%clk 0:03:00]} 5. Nf3 {[%clk 0:02:50]}  O-O {[%clk 0:03:01]} 6. Be2 {[%clk 0:02:44]}  Na6 {[%clk 0:03:01]} 7. a3 {[%clk 0:02:44]}  c5 {[%clk 0:03:01]} 8. e5 {[%clk 0:02:40]}  Nd7 {[%clk 0:02:48]} 9. d5 {[%clk 0:02:30]}  dxe5 {[%clk 0:02:44]} 10. d6 {[%clk 0:02:21]}  exd6 {[%clk 0:02:36]} 11. Qxd6 {[%clk 0:02:20]}  Re8 {[%clk 0:02:10]} 12. O-O {[%clk 0:02:16]}  e4 {[%clk 0:02:04]} 13. Ng5 {[%clk 0:02:09]}  Nf6 {[%clk 0:01:47]} 14. Qxd8 {[%clk 0:01:58]}  Rxd8 {[%clk 0:01:47]} 15. Ncxe4 {[%clk 0:01:58]}  Nxe4 {[%clk 0:01:40]} 16. Nxe4 {[%clk 0:01:58]}  Bf5 {[%clk 0:01:35]} 17. Bf3 {[%clk 0:01:48]}  Rd7 {[%clk 0:01:24]} 18. Be3 {[%clk 0:01:43]}  Bxe4 {[%clk 0:01:15]} 19. Bxe4 {[%clk 0:01:40]}  Re8 {[%clk 0:01:14]} 20. Rad1 {[%clk 0:01:26]}  Rxd1 {[%clk 0:01:11]} 21. Rxd1 {[%clk 0:01:25]}  Rxe4 {[%clk 0:01:11]} 22. Rd8+ {[%clk 0:01:24]}  Bf8 {[%clk 0:01:11]} 23. Kf2 {[%clk 0:01:23]}  Kg7 {[%clk 0:01:05]} 24. Rd7 {[%clk 0:01:19]}  Re7 {[%clk 0:01:03]} 25. Rd5 {[%clk 0:01:16]}  b6 {[%clk 0:01:01]} 26. c4 {[%clk 0:01:12]}  Nc7 {[%clk 0:01:01]} 27. Rd8 {[%clk 0:01:11]}  Ne6 {[%clk 0:01:00]} 28. Ra8 {[%clk 0:01:02]}  f5 {[%clk 0:00:59]} 29. a4 {[%clk 0:01:00]}  Kf7 {[%clk 0:00:58]} 30. Bd2 {[%clk 0:00:42]}  Bg7 {[%clk 0:00:57]} 31. b4 {[%clk 0:00:40]}  Rd7 {[%clk 0:00:52]} 32. Be1 {[%clk 0:00:34]}  Nxf4 {[%clk 0:00:49]} 33. bxc5 {[%clk 0:00:34]}  Nd3+ {[%clk 0:00:48]} 34. Ke2 {[%clk 0:00:33]}  Nxe1 {[%clk 0:00:47]} 35. Kxe1 {[%clk 0:00:33]}  bxc5 {[%clk 0:00:47]} 36. Rc8 {[%clk 0:00:32]}  Bd4 {[%clk 0:00:47]} 37. a5 {[%clk 0:00:31]}  Re7+ {[%clk 0:00:35]} 38. Kd2 {[%clk 0:00:28]}  g5 {[%clk 0:00:35]} 39. a6 {[%clk 0:00:28]}  f4 {[%clk 0:00:34]} 40. Rb8 {[%clk 0:00:27]}  g4 {[%clk 0:00:34]} 41. Rb7 {[%clk 0:00:26]}  f3 {[%clk 0:00:34]} 42. gxf3 {[%clk 0:00:24]}  gxf3 {[%clk 0:00:33]} 43. Kd3 {[%clk 0:00:18]}  f2 {[%clk 0:00:33]} 44. Rxe7+ {[%clk 0:00:17]}  Kxe7 {[%clk 0:00:32]} 45. Ke2 {[%clk 0:00:17]}  Kd6 {[%clk 0:00:32]} 46. h4 {[%clk 0:00:17]}  Kc6 {[%clk 0:00:31]} 47. h5 {[%clk 0:00:16]}  Kb6 {[%clk 0:00:31]} 48. h6 {[%clk 0:00:16]}  Kxa6 {[%clk 0:00:32]} 49. Kf1 {[%clk 0:00:16]}  Ka5 {[%clk 0:00:32]} 50. Ke2 {[%clk 0:00:16]}  Kb4 {[%clk 0:00:32]} 51. Kf1 {[%clk 0:00:16]}  Kxc4 {[%clk 0:00:32]} 52. Ke2 {[%clk 0:00:16]}  a5 {[%clk 0:00:32]} 53. Kf1 {[%clk 0:00:16]}  Kd3 {[%clk 0:00:32]} 54. Kg2 {[%clk 0:00:15]}  Ke2 {[%clk 0:00:32]} 55. Kg3 {[%clk 0:00:00]}  f1=Q {[%clk 0:00:32]} 0-1


[Site "https://www.chess.com"]

[Event "Titled Tuesday Blitz July 25 Late 2023"]
[White "Clawitter, Craig"]
[Black "Lutz, Igor Oscar"]
[WhiteFideId "2023105"]
[BlackFideId "2110806"]
[WhiteElo "2257"]
[BlackElo "1966"]
[Result "1-0"]
[Round "11"]
[TimeControl "180+2"]
[Date "2023.07.25"]
[WhiteClock "0:01:38"]
[BlackClock "0:02:06"]
[Board "103"]

1. c4 {[%clk 0:03:00]}  Nf6 {[%clk 0:02:58]} 2. Nf3 {[%clk 0:02:59]}  c6 {[%clk 0:02:59]} 3. d4 {[%clk 0:02:51]}  d5 {[%clk 0:02:59]} 4. Nc3 {[%clk 0:02:51]}  e6 {[%clk 0:02:59]} 5. Bg5 {[%clk 0:02:50]}  h6 {[%clk 0:02:53]} 6. Bh4 {[%clk 0:02:49]}  Be7 {[%clk 0:02:53]} 7. e3 {[%clk 0:02:48]}  O-O {[%clk 0:02:52]} 8. Be2 {[%clk 0:02:38]}  dxc4 {[%clk 0:02:51]} 9. a4 {[%clk 0:02:31]}  Nbd7 {[%clk 0:02:49]} 10. O-O {[%clk 0:02:24]}  Qc7 {[%clk 0:02:49]} 11. Nd2 {[%clk 0:02:17]}  e5 {[%clk 0:02:49]} 12. Nxc4 {[%clk 0:02:11]}  exd4 {[%clk 0:02:48]} 13. Bg3 {[%clk 0:02:05]}  Qd8 {[%clk 0:02:40]} 14. Qxd4 {[%clk 0:02:05]}  Bc5 {[%clk 0:02:32]} 15. Qd2 {[%clk 0:01:59]}  Nb6 {[%clk 0:02:31]} 16. Rfd1 {[%clk 0:01:46]}  Nxc4 {[%clk 0:02:15]} 17. Qxd8 {[%clk 0:01:40]}  Rxd8 {[%clk 0:02:11]} 18. Rxd8+ {[%clk 0:01:39]}  Kh7 {[%clk 0:02:06]} 19. Bxc4 {[%clk 0:01:38]} 1-0


[Site "https://www.chess.com"]

[Event "Titled Tuesday Blitz July 25 Late 2023"]
[White "Dwilewicz, Katarzyna"]
[Black "Floresvillar Gonzalez, Luis Migu"]
[WhiteFideId "1148486"]
[BlackFideId "5100542"]
[WhiteElo "2362"]
[BlackElo "2103"]
[Result "1-0"]
[Round "11"]
[TimeControl "180+2"]
[Date "2023.07.25"]
[WhiteClock "0:01:48"]
[BlackClock "0:00:59"]
[Board "105"]

1. e4 {[%clk 0:02:59]}  e6 {[%clk 0:02:57]} 2. d4 {[%clk 0:02:59]}  d5 {[%clk 0:02:50]} 3. Nd2 {[%clk 0:02:58]}  dxe4 {[%clk 0:02:49]} 4. Nxe4 {[%clk 0:02:54]}  Nd7 {[%clk 0:02:49]} 5. Nf3 {[%clk 0:02:54]}  Ngf6 {[%clk 0:02:49]} 6. Nxf6+ {[%clk 0:02:54]}  Nxf6 {[%clk 0:02:48]} 7. Bd3 {[%clk 0:02:55]}  c5 {[%clk 0:02:48]} 8. O-O {[%clk 0:02:54]}  cxd4 {[%clk 0:02:47]} 9. Nxd4 {[%clk 0:02:53]}  Be7 {[%clk 0:02:46]} 10. c3 {[%clk 0:02:52]}  O-O {[%clk 0:02:45]} 11. Qf3 {[%clk 0:02:51]}  e5 {[%clk 0:02:39]} 12. Nf5 {[%clk 0:02:50]}  Bxf5 {[%clk 0:02:38]} 13. Qxf5 {[%clk 0:02:48]}  Qc7 {[%clk 0:02:28]} 14. Re1 {[%clk 0:02:44]}  Rad8 {[%clk 0:02:15]} 15. Bg5 {[%clk 0:02:44]}  g6 {[%clk 0:02:14]} 16. Qxe5 {[%clk 0:02:30]}  Qxe5 {[%clk 0:02:13]} 17. Rxe5 {[%clk 0:02:30]}  Rxd3 {[%clk 0:02:05]} 18. Rxe7 {[%clk 0:02:29]}  Kg7 {[%clk 0:01:54]} 19. Rxb7 {[%clk 0:02:24]}  h6 {[%clk 0:01:53]} 20. Bxf6+ {[%clk 0:02:19]}  Kxf6 {[%clk 0:01:53]} 21. Re1 {[%clk 0:02:16]}  Re8 {[%clk 0:01:49]} 22. Kf1 {[%clk 0:02:14]}  Rxe1+ {[%clk 0:01:35]} 23. Kxe1 {[%clk 0:02:13]}  a5 {[%clk 0:01:35]} 24. Rb5 {[%clk 0:02:09]}  a4 {[%clk 0:01:35]} 25. Ra5 {[%clk 0:02:09]}  Rd6 {[%clk 0:01:28]} 26. Rxa4 {[%clk 0:02:09]}  Rb6 {[%clk 0:01:28]} 27. Rb4 {[%clk 0:02:08]}  Ra6 {[%clk 0:01:28]} 28. a4 {[%clk 0:02:07]}  Re6+ {[%clk 0:01:27]} 29. Kd2 {[%clk 0:02:06]}  Rd6+ {[%clk 0:01:27]} 30. Rd4 {[%clk 0:02:07]}  Rb6 {[%clk 0:01:27]} 31. b4 {[%clk 0:02:07]}  Ra6 {[%clk 0:01:27]} 32. a5 {[%clk 0:02:07]}  Ke5 {[%clk 0:01:27]} 33. Rd7 {[%clk 0:02:05]}  f5 {[%clk 0:01:26]} 34. Rb7 {[%clk 0:02:05]}  g5 {[%clk 0:01:20]} 35. Rb6 {[%clk 0:02:04]}  Ra8 {[%clk 0:01:20]} 36. Rxh6 {[%clk 0:02:04]}  g4 {[%clk 0:01:19]} 37. Rb6 {[%clk 0:02:00]}  Kf4 {[%clk 0:01:18]} 38. a6 {[%clk 0:02:00]}  Ke4 {[%clk 0:01:12]} 39. b5 {[%clk 0:02:00]}  f4 {[%clk 0:01:12]} 40. Rd6 {[%clk 0:01:52]}  f3 {[%clk 0:01:12]} 41. Rd4+ {[%clk 0:01:48]}  Kf5 {[%clk 0:01:09]} 42. gxf3 {[%clk 0:01:49]}  gxf3 {[%clk 0:01:09]} 43. Ke3 {[%clk 0:01:49]}  Rc8 {[%clk 0:00:59]} 44. c4 {[%clk 0:01:48]} 1-0


[Site "https://www.chess.com"]

[Event "Titled Tuesday Blitz July 25 Late 2023"]
[White "Hartikainen, Jarmo"]
[Black "Hamidi, Amir Mohammad"]
[WhiteFideId "503134"]
[BlackFideId "12563285"]
[WhiteElo "2082"]
[BlackElo "2709"]
[Result "0-1"]
[Round "11"]
[TimeControl "180+2"]
[Date "2023.07.25"]
[WhiteClock "0:00:00"]
[BlackClock "0:00:07"]
[Board "107"]

1. e4 {[%clk 0:03:00]}  c6 {[%clk 0:02:59]} 2. d4 {[%clk 0:03:00]}  d5 {[%clk 0:03:00]} 3. Nd2 {[%clk 0:03:00]}  dxe4 {[%clk 0:03:00]} 4. Nxe4 {[%clk 0:03:01]}  Bf5 {[%clk 0:03:00]} 5. Ng3 {[%clk 0:03:01]}  Bg6 {[%clk 0:03:01]} 6. h4 {[%clk 0:03:02]}  h6 {[%clk 0:03:01]} 7. Bc4 {[%clk 0:03:02]}  e6 {[%clk 0:03:00]} 8. N1e2 {[%clk 0:03:02]}  Nf6 {[%clk 0:02:48]} 9. Nf4 {[%clk 0:03:00]}  Bh7 {[%clk 0:02:47]} 10. O-O {[%clk 0:03:00]}  Be7 {[%clk 0:02:43]} 11. Nxe6 {[%clk 0:02:51]}  fxe6 {[%clk 0:02:42]} 12. Bxe6 {[%clk 0:02:51]}  Nbd7 {[%clk 0:02:38]} 13. Re1 {[%clk 0:02:49]}  Qc7 {[%clk 0:02:28]} 14. Bh3 {[%clk 0:02:36]}  Qd6 {[%clk 0:01:55]} 15. Qe2 {[%clk 0:02:35]}  Ng8 {[%clk 0:01:31]} 16. Bf4 {[%clk 0:02:09]}  Qxf4 {[%clk 0:01:03]} 17. Nh5 {[%clk 0:01:58]}  Qf7 {[%clk 0:00:50]} 18. d5 {[%clk 0:01:39]}  cxd5 {[%clk 0:00:43]} 19. Qb5 {[%clk 0:01:22]}  O-O-O {[%clk 0:00:41]} 20. Ng3 {[%clk 0:01:10]}  Bxh4 {[%clk 0:00:36]} 21. Be6 {[%clk 0:01:06]}  Qg6 {[%clk 0:00:21]} 22. Bxd5 {[%clk 0:00:52]}  Qb6 {[%clk 0:00:18]} 23. Qc4+ {[%clk 0:00:47]}  Kb8 {[%clk 0:00:18]} 24. Qxh4 {[%clk 0:00:48]}  Nc5 {[%clk 0:00:16]} 25. c4 {[%clk 0:00:46]}  Nf6 {[%clk 0:00:16]} 26. Qf4+ {[%clk 0:00:38]}  Ka8 {[%clk 0:00:16]} 27. Rad1 {[%clk 0:00:24]}  Rhf8 {[%clk 0:00:14]} 28. Qd4 {[%clk 0:00:21]}  Nxd5 {[%clk 0:00:09]} 29. cxd5 {[%clk 0:00:21]}  Na4 {[%clk 0:00:07]} 30. b3 {[%clk 0:00:20]}  Qxd4 {[%clk 0:00:06]} 31. Rxd4 {[%clk 0:00:20]}  Nb6 {[%clk 0:00:07]} 32. d6 {[%clk 0:00:18]}  Rf7 {[%clk 0:00:07]} 33. Red1 {[%clk 0:00:18]}  Rfd7 {[%clk 0:00:07]} 34. f3 {[%clk 0:00:19]}  Bg8 {[%clk 0:00:08]} 35. Ne4 {[%clk 0:00:19]}  Nc8 {[%clk 0:00:08]} 36. Kf2 {[%clk 0:00:18]}  Bh7 {[%clk 0:00:09]} 37. Ke3 {[%clk 0:00:18]}  Bxe4 {[%clk 0:00:10]} 38. fxe4 {[%clk 0:00:18]}  Rxd6 {[%clk 0:00:10]} 39. Rxd6 {[%clk 0:00:18]}  Rxd6 {[%clk 0:00:11]} 40. Rf1 {[%clk 0:00:18]}  Rf6 {[%clk 0:00:11]} 41. Rd1 {[%clk 0:00:18]}  Nd6 {[%clk 0:00:11]} 42. e5 {[%clk 0:00:17]}  Re6 {[%clk 0:00:11]} 43. Kf4 {[%clk 0:00:17]}  Nf7 {[%clk 0:00:11]} 44. Rd7 {[%clk 0:00:14]}  g5+ {[%clk 0:00:08]} 45. Kg3 {[%clk 0:00:11]}  Rxe5 {[%clk 0:00:05]} 46. Rxf7 {[%clk 0:00:10]}  a6 {[%clk 0:00:05]} 47. Rf6 {[%clk 0:00:09]}  Re2 {[%clk 0:00:05]} 48. Rxh6 {[%clk 0:00:09]}  Rxa2 {[%clk 0:00:06]} 49. Rg6 {[%clk 0:00:08]}  Ra3 {[%clk 0:00:06]} 50. Rb6 {[%clk 0:00:08]}  Rxb3+ {[%clk 0:00:07]} 51. Kg4 {[%clk 0:00:00]}  Rxb6 {[%clk 0:00:07]} 0-1


[Site "https://www.chess.com"]